fUSD/lending_fUSD_20260524
["ID","MTS","AMOUNT","RATE_DAILY","PERIOD"]
[422901978,1779593456000,-29.59386473,0.00035763,2]
[422901972,1779593456000,-300.00000001,0.00035763,2]
[422901965,1779593456000,-96.83898455,0.00035763,2]
[422901969,1779593456000,-300.0,0.00035763,2]
[422901968,1779593456000,-479.57212414,0.00035763,2]
[422901967,1779593456000,-414.93807725,0.00035763,2]
[422901974,1779593456000,-117.63616214,0.00035763,2]
[422901966,1779593456000,-971.41050312,0.00035763,2]
[422902014,1779593457000,-300.0,0.00035763,2]
[422902019,1779593457000,-300.0,0.00035763,2]
[422902012,1779593457000,-300.0,0.00035763,2]
[422902018,1779593457000,-452.46496934,0.00035763,2]
[422902015,1779593457000,-464.42003411,0.00035763,2]
[422902009,1779593457000,-300.0,0.00035763,2]
[422902016,1779593457000,-300.0,0.00035763,2]
[422902017,1779593457000,-300.0,0.00035763,2]
[422902024,1779593457000,-300.0,0.00035763,2]
[422902023,1779593457000,-300.0,0.00035763,2]
[422902022,1779593457000,-310.23120383,0.00035763,2]
[422902021,1779593457000,-300.0,0.00035763,2]
[422902020,1779593457000,-300.0,0.00035763,2]
[422902033,1779593457000,-300.0,0.00035763,2]
[422902025,1779593457000,-300.0,0.00035763,2]
[422902032,1779593457000,-300.0,0.00035763,2]
[422902028,1779593457000,-300.0,0.00035763,2]
[422902027,1779593457000,-300.0,0.00035763,2]
[422902013,1779593457000,-300.00000001,0.00035763,2]
[422902030,1779593457000,-300.0,0.00035763,2]
[422902026,1779593457000,-300.00000001,0.00035763,2]
[422902031,1779593457000,-300.0,0.00035763,2]
[422902010,1779593457000,-300.0,0.00035763,2]
[422902000,1779593457000,-500.0,0.00032877,2]
[422902008,1779593457000,-309.97461257,0.00035763,2]
[422902029,1779593457000,-1096.11691303,0.00035763,2]
[422901986,1779593457000,-17959.43270785,0.00020548,2]
[422901994,1779593457000,-16079.53,0.00027397,10]
[422901985,1779593457000,-152.729489,0.0002,2]
[422901987,1779593457000,-156.27,0.00024658,2]
[422901991,1779593457000,-156.27,0.00026286,2]
[422901993,1779593457000,-156.27,0.00027371,30]
[422901988,1779593457000,-6060.0,0.0002502,2]
[422901990,1779593457000,-156.27,0.00025743,30]
[422901989,1779593457000,-156.27,0.000252,7]
[422901992,1779593457000,-156.27,0.00026829,7]
[422901995,1779593457000,-5134.336,0.0002802,2]
[422901997,1779593457000,-156.28,0.00029,30]
[422901998,1779593457000,-423.0,0.00030137,30]
[422901999,1779593457000,-152.0,0.00030913,7]
[422901996,1779593457000,-156.28,0.0002813,30]
[422902001,1779593457000,-323.97093994,0.00035763,2]
[422902005,1779593457000,-300.0,0.00035763,2]
[422902003,1779593457000,-300.0,0.00035763,2]
[422902004,1779593457000,-527.54043934,0.00035763,2]
[422902002,1779593457000,-344.39998401,0.00035763,2]
[422902006,1779593457000,-300.0,0.00035763,2]
[422902007,1779593457000,-1148.65031293,0.00035763,2]
[422902011,1779593457000,-1794.55275429,0.00035763,2]
[422902035,1779593457000,-300.0,0.00035763,2]
[422902048,1779593457000,-300.0,0.00035763,2]
[422902036,1779593457000,-300.00000001,0.00035763,2]
[422902066,1779593457000,-300.0,0.00035763,2]
[422902063,1779593457000,-726.95960268,0.00035763,2]
[422902064,1779593457000,-300.0,0.00035763,2]
[422902069,1779593457000,-300.0,0.00035763,2]
[422902068,1779593457000,-300.0,0.00035763,2]
[422902070,1779593457000,-300.0,0.00035763,2]
[422902071,1779593457000,-300.0,0.00035763,2]
[422902074,1779593457000,-300.0,0.00035763,2]
[422902073,1779593457000,-300.0,0.00035763,2]
[422902072,1779593457000,-300.0,0.00035763,2]
[422902061,1779593457000,-313.42151652,0.00035763,2]
[422902075,1779593457000,-344.39998401,0.00035763,2]
[422902076,1779593457000,-527.54043934,0.00035763,2]
[422902079,1779593457000,-1148.65031293,0.00035763,2]
[422902084,1779593457000,-300.0,0.00035763,2]
[422902082,1779593457000,-300.0,0.00035763,2]
[422902080,1779593457000,-309.97461257,0.00035763,2]
[422902083,1779593457000,-1794.55275429,0.00035763,2]
[422902085,1779593457000,-300.0,0.00035763,2]
[422902081,1779593457000,-300.0,0.00035763,2]
[422902086,1779593457000,-95.17139068,0.00035763,2]
[422902034,1779593457000,-300.0,0.00035763,2]
[422902078,1779593457000,-300.0,0.00035763,2]
[422902065,1779593457000,-302.17000808,0.00035763,2]
[422902077,1779593457000,-300.0,0.00035763,2]
[422902060,1779593457000,-894.51020139,0.00035763,2]
[422902037,1779593457000,-300.0,0.00035763,2]
[422902062,1779593457000,-300.0,0.00035763,2]
[422902038,1779593457000,-32.84091288,0.00035763,2]
[422902041,1779593457000,-405.06,0.00027711,7]
[422902039,1779593457000,-1148.22,0.0002755,30]
[422902040,1779593457000,-405.06,0.0002755,30]
[422902042,1779593457000,-1148.22,0.00027711,7]
[422902045,1779593457000,-84.82604011,0.00035763,2]
[422902044,1779593457000,-215.17395989,0.00035763,2]
[422902046,1779593457000,-300.0,0.00035763,2]
[422902054,1779593457000,-605.22043376,0.00035763,2]
[422902049,1779593457000,-300.0,0.00035763,2]
[422902043,1779593457000,-267.15908712,0.00035763,2]
[422902047,1779593457000,-493.31192768,0.00035763,2]
[422902059,1779593457000,-1068.24948767,0.00035763,2]
[422902056,1779593457000,-300.00000001,0.00035763,2]
[422902057,1779593457000,-300.0,0.00035763,2]
[422902055,1779593457000,-300.0,0.00035763,2]
[422902058,1779593457000,-300.0,0.00035763,2]
[422902067,1779593457000,-300.94832661,0.00035763,2]
[422902053,1779593457000,-19.13796779,0.00035763,2]
[422902051,1779593457000,-201.730421,0.00027397,2]
[422902052,1779593457000,-405.06,0.00027872,2]
[422902050,1779593457000,-280.86203221,0.00035763,2]
[422902087,1779593638000,173.25,0.00026777,120]
[422902105,1779594632000,-300.0,0.00014995,2]
[422902106,1779594632000,-300.0,0.00014995,2]
[422902109,1779594632000,-500.0,0.00014999,2]
[422902112,1779594632000,-500.0,0.00014999,2]
[422902117,1779594632000,-300.0,0.00015823,2]
[422902110,1779594632000,-500.0,0.00014999,2]
[422902114,1779594632000,-500.0,0.00014999,2]
[422902108,1779594632000,-504.29151086,0.00014999,2]
[422902107,1779594632000,-500.0,0.00014999,2]
[422902118,1779594632000,-19054.3,0.00016116,2]
[422902111,1779594632000,-500.0,0.00014999,2]
[422902103,1779594632000,-1200.0,0.00014995,2]
[422902093,1779594632000,-252.07104316,0.00010125,2]
[422902098,1779594632000,-154.98,0.00014385,2]
[422902097,1779594632000,-323.82986571,0.00012024,2]
[422902099,1779594632000,-197.6366185,0.00014896,2]
[422902101,1779594632000,-905.5468821,0.00014994,2]
[422902096,1779594632000,-250.0,0.00010125,2]
[422902104,1779594632000,-300.0,0.00014995,2]
[422902102,1779594632000,-294.4531179,0.00014994,2]
[422902095,1779594632000,-0.42053369,0.00010125,2]
[422902094,1779594632000,-249.57946631,0.00010125,2]
[422902092,1779594632000,-155.3,9.205e-05,2]
[422902116,1779594632000,-154.98,0.00015584,2]
[422902100,1779594632000,-536.3061,0.00014899,2]
[422902115,1779594632000,-512.0093558,0.00014999,2]
[422902152,1779594632000,-4712.89878886,0.00018296,2]
[422902113,1779594632000,-508.40286137,0.00014999,2]
[422902163,1779594632000,-200.0,0.00018459,2]
[422902158,1779594632000,-315.1,0.0001841,2]
[422902160,1779594632000,-1000.0,0.00018432,2]
[422902162,1779594632000,-150.0,0.00018436,2]
[422902156,1779594632000,-1600.40153551,0.00018296,2]
[422902119,1779594632000,-9999.99,0.00016116,2]
[422902146,1779594632000,-154.98,0.00017981,2]
[422902148,1779594632000,-812.92,0.00018071,2]
[422902144,1779594632000,-173.16,0.00017403,2]
[422902150,1779594632000,-2351.0,0.00018143,2]
[422902142,1779594632000,-255.0,0.00016946,2]
[422902141,1779594632000,-5278.19,0.00016922,2]
[422902154,1779594632000,-13302.50967563,0.00018296,2]
[422902127,1779594632000,-420.0,0.00016411,2]
[422902129,1779594632000,-315.1,0.00016438,2]
[422902121,1779594632000,-2131.68,0.00016116,2]
[422902132,1779594632000,-816.01039642,0.00016535,2]
[422902139,1779594632000,-1101.87,0.00016922,2]
[422902136,1779594632000,-999.99,0.00016922,2]
[422902131,1779594632000,-1680.0,0.00016493,2]
[422902122,1779594632000,-2208.84,0.00016116,2]
[422902120,1779594632000,-150.99,0.00016116,2]
[422902125,1779594632000,-1471.0,0.00016411,2]
[422902123,1779594632000,-299.99,0.00016116,4]
[422902124,1779594632000,-2553.97,0.00016116,2]
[422902135,1779594632000,-154.98,0.00016783,2]
[422902170,1779594633000,-1729.0,0.00019957,2]
[422902187,1779594633000,-1628.92849629,0.000211,2]
[422902179,1779594633000,-500.88002424,0.00020908,2]
[422902177,1779594633000,-315.1,0.00020381,2]
[422902167,1779594633000,-200.0,0.0001861,2]
[422902169,1779594633000,-154.98,0.0001918,2]
[422902171,1779594633000,-163.0,0.0002,2]
[422902175,1779594633000,-3168.53,0.00020145,2]
[422902176,1779594633000,-154.98,0.00020379,2]
[422902174,1779594633000,-173.0,0.0002,2]
[422902173,1779594633000,-187.0,0.0002,2]
[422902172,1779594633000,-421.0,0.0002,2]
[422902178,1779594633000,-500.0,0.00020908,2]
[422902168,1779594633000,-230.15,0.0001869,2]
[422902189,1779594633000,-1848.66539149,0.000211,2]
[422902165,1779594633000,-9315.05,0.00018469,2]
[422902188,1779594633000,-1251.3534188,0.000211,2]
[422902194,1779594633000,-895.47605306,0.000213,2]
[422902193,1779594633000,-355.87736574,0.000213,2]
[422902195,1779594633000,-1076.15681206,0.000213,2]
[422902192,1779594633000,-11.68116193,0.000213,2]
[422902196,1779594633000,-772.50857943,0.000213,2]
[422902197,1779594633000,-668.49142057,0.00021499,2]
[422902190,1779594633000,-731.68151097,0.000213,2]
[422902180,1779594633000,-838.0,0.00021,2]
[422902185,1779594633000,-570.47017261,0.00021,2]
[422902186,1779594633000,-215.34753388,0.00021077,2]
[422902183,1779594633000,-173.0,0.00021,2]
[422902184,1779594633000,-2985.52982739,0.00021,2]
[422902181,1779594633000,-421.0,0.00021,2]
[422902182,1779594633000,-187.0,0.00021,2]
[422902191,1779594633000,-885.56582339,0.000213,2]
[422902217,1779594638000,-8729.89051186,0.00021499,2]
[422902220,1779594638000,-1388.37526868,0.000215,2]
[422902219,1779594638000,-240.55322761,0.000215,2]
[422902221,1779594638000,-1251.3534188,0.000215,2]
[422902222,1779594638000,-123.60527146,0.000215,2]
[422902218,1779594638000,-308.67498155,0.00021499,2]
[422902254,1779594640000,-292.688,0.000215,2]
[422902261,1779594641000,-500.0,0.00021599,2]
[422902256,1779594641000,-168.79468845,0.000215,2]
[422902255,1779594641000,-1432.37212003,0.000215,2]
[422902257,1779594641000,-3555.26396659,0.000215,2]
[422902262,1779594641000,-500.0,0.00021599,2]
[422902260,1779594641000,-500.0,0.00021599,2]
[422902258,1779594641000,-6886.60187097,0.000215,2]
[422902269,1779594641000,-317.65586283,0.00021599,2]
[422902259,1779594641000,-154.98,0.00021578,2]
[422902264,1779594641000,-500.0,0.00021599,2]
[422902268,1779594641000,-500.0,0.00021599,2]
[422902263,1779594641000,-565.11243597,0.00021599,2]
[422902265,1779594641000,-46.98869963,0.00021599,2]
[422902266,1779594641000,-453.01130037,0.00021599,2]
[422902267,1779594641000,-500.0,0.00021599,2]
[422902270,1779594641000,-500.0,0.00021599,2]
[422902271,1779594641000,-1571.5328368,0.000216,2]
[422902272,1779594641000,-492.65507974,0.000216,2]
[422902284,1779594643000,-1552.85383276,0.000216,2]
[422902285,1779594643000,-8672.49591473,0.000216,2]
[422902286,1779594644000,-287550.18055459,0.000216,2]
[422902292,1779594647000,-1640.20345004,0.000216,2]
[422902298,1779595235000,208.61156725,0.00010663,7]
[422902308,1779595831000,-190.95193884,0.00016,2]
[422902315,1779595831000,-300.0,0.00019726,2]
[422902316,1779595831000,-242.96185737,0.00019726,2]
[422902314,1779595831000,-139.26434343,0.00018515,2]
[422902312,1779595831000,-467.8,0.0001841,2]
[422902311,1779595831000,-284.83924377,0.00018,2]
[422902320,1779595831000,-150.99,0.00019726,2]
[422902319,1779595831000,-9999.99,0.00019726,2]
[422902306,1779595831000,-250.0,0.00014,2]
[422902310,1779595831000,-65.16075623,0.00018,2]
[422902318,1779595831000,-299.99,0.00019726,7]
[422902309,1779595831000,-467.8,0.00016438,2]
[422902307,1779595831000,-109.04806116,0.00016,2]
[422902305,1779595831000,-250.0,0.00011154,2]
[422902303,1779595831000,-150.0,0.0001014,2]
[422902317,1779595831000,-4757.02814263,0.00019726,2]
[422902313,1779595831000,-60.73565657,0.00018515,2]
[422902330,1779595831000,-151.0,0.00019727,2]
[422902304,1779595831000,-155.27,0.00010454,2]
[422902321,1779595831000,-151.0,0.00019727,2]
[422902332,1779595831000,-151.0,0.00019727,2]
[422902339,1779595831000,-151.0,0.00019727,2]
[422902338,1779595831000,-151.0,0.00019727,2]
[422902340,1779595831000,-151.0,0.00019727,2]
[422902336,1779595831000,-151.0,0.00019727,2]
[422902335,1779595831000,-151.0,0.00019727,2]
[422902334,1779595831000,-151.0,0.00019727,2]
[422902333,1779595831000,-151.0,0.00019727,2]
[422902337,1779595831000,-252.43146863,0.00019727,2]
[422902323,1779595831000,-151.0,0.00019727,2]
[422902331,1779595831000,-151.0,0.00019727,2]
[422902329,1779595831000,-151.0,0.00019727,2]
[422902324,1779595831000,-151.0,0.00019727,2]
[422902322,1779595831000,-151.0,0.00019727,2]
[422902328,1779595831000,-151.0,0.00019727,2]
[422902325,1779595831000,-151.0,0.00019727,2]
[422902327,1779595831000,-151.0,0.00019727,2]
[422902326,1779595831000,-151.0,0.00019727,2]
[422902353,1779595832000,-150.18093247,0.0002,20]
[422902371,1779595832000,-651.57139852,0.000211,2]
[422902370,1779595832000,-155.0,0.00021,2]
[422902368,1779595832000,-232.0,0.00021,2]
[422902361,1779595832000,-500.0,0.00020381,2]
[422902359,1779595832000,-467.8,0.00020381,2]
[422902357,1779595832000,-406.46,0.00020249,2]
[422902350,1779595832000,-232.0,0.0002,2]
[422902372,1779595832000,-500.54136752,0.000211,2]
[422902355,1779595832000,-195.31,0.00020042,2]
[422902342,1779595832000,-151.0,0.00019727,2]
[422902351,1779595832000,-241.0,0.0002,2]
[422902352,1779595832000,-155.0,0.0002,2]
[422902356,1779595832000,-43486.07,0.00020044,2]
[422902348,1779595832000,-501.0,0.0002,2]
[422902347,1779595832000,-151.0,0.0002,2]
[422902346,1779595832000,-500.0,0.00019968,2]
[422902345,1779595832000,-254.62,0.000199,2]
[422902369,1779595832000,-241.0,0.00021,2]
[422902341,1779595832000,-151.0,0.00019727,2]
[422902344,1779595832000,-151.0,0.00019727,2]
[422902343,1779595832000,-151.0,0.00019727,2]
[422902349,1779595832000,-155.01191498,0.0002,2]
[422902363,1779595832000,-150.0,0.00020405,2]
[422902366,1779595832000,-151.0,0.00021,2]
[422902367,1779595832000,-501.0,0.00021,2]
[422902365,1779595832000,-271.49,0.00020812,2]
[422902391,1779595832000,-2277.63330726,0.00021399,2]
[422902394,1779595832000,-569.13169042,0.00021399,2]
[422902392,1779595832000,-970.44892758,0.00021399,2]
[422902390,1779595832000,-5128.06623055,0.00021399,2]
[422902388,1779595832000,-43781.46857854,0.00021399,2]
[422902389,1779595832000,-771.02823804,0.00021399,2]
[422902386,1779595832000,-1128.773,0.000213,2]
[422902387,1779595832000,-178.47579368,0.00021389,2]
[422902379,1779595832000,-2500.0,0.00021299,2]
[422902382,1779595832000,-6025.77663709,0.00021299,2]
[422902393,1779595832000,-816.39367816,0.00021399,2]
[422902383,1779595832000,-651.57139852,0.000213,2]
[422902364,1779595832000,-503.56250299,0.00020655,2]
[422902377,1779595832000,-387.32,0.00021273,2]
[422902378,1779595832000,-13168.23,0.00021273,2]
[422902375,1779595832000,-907.76,0.00021273,2]
[422902373,1779595832000,-739.4661566,0.000211,2]
[422902384,1779595832000,-500.54136752,0.000213,2]
[422902385,1779595832000,-739.4661566,0.000213,2]
[422902380,1779595832000,-8736.3512226,0.00021299,2]
[422902376,1779595832000,-285.68,0.00021273,2]
[422902374,1779595832000,-500.0,0.00021209,2]
[422902381,1779595832000,-3199.73756994,0.00021299,2]
[422902416,1779595837000,-254.00184555,0.00021462,2]
[422902408,1779595837000,-786.07309635,0.00021299,2]
[422902412,1779595837000,-1629.57776266,0.00021399,2]
[422902410,1779595837000,-277.78753136,0.00021399,2]
[422902411,1779595837000,-10299.35057844,0.00021399,2]
[422902415,1779595837000,-192.90821538,0.000214,2]
[422902414,1779595837000,-3279.0757732,0.00021399,2]
[422902409,1779595837000,-1445685.82934945,0.00021399,2]
[422902417,1779595837000,-1256.743768,0.00021464,2]
[422902413,1779595837000,-334.90700606,0.00021399,2]
[422902423,1779595837000,-258.2207912,0.00021499,2]
[422902419,1779595837000,-29727.631444,0.00021464,2]
[422902421,1779595837000,-230.0,0.00021485,2]
[422902418,1779595837000,-1780.8301437,0.00021464,2]
[422902420,1779595837000,-2587.3328981,0.00021464,2]
[422902422,1779595837000,-1043148.20627075,0.00021499,2]
[422902434,1779595842000,-645.25506771,0.00021499,2]
[422902437,1779595843000,-3216.20940537,0.00021499,2]
[422902435,1779595843000,-717.72,0.00021499,2]
[422902436,1779595843000,-634.28,0.00021499,2]
[422902449,1779595845000,-354.70923108,0.00021499,2]
[422902451,1779595846000,-256.84210766,0.00021499,2]
[422902450,1779595846000,-19038.00014156,0.00021499,2]
[422902464,1779595923000,500.0,0.00028082,120]
[422902465,1779596112000,1217.48,0.00027544,120]
[422902466,1779596241000,342.17,0.00027397,120]
[422902469,1779596600000,1406.74,0.000226,120]
[422902470,1779596941000,1000.0,0.00028081,120]
[422902490,1779597033000,-500.0,0.00010699,2]
[422902499,1779597033000,-500.0,0.00010699,2]
[422902478,1779597033000,-210.42607263,0.00010277,2]
[422902480,1779597033000,-1200.0,0.00010299,2]
[422902485,1779597033000,-51590.6120677,0.000103,2]
[422902482,1779597033000,-150.0,0.00010299,2]
[422902481,1779597033000,-230.0,0.00010299,2]
[422902483,1779597033000,-909.57392737,0.000103,2]
[422902486,1779597033000,-40700.04702749,0.000103,2]
[422902487,1779597033000,-170.83,0.00010377,2]
[422902484,1779597033000,-7779.75741767,0.000103,2]
[422902479,1779597033000,-300.0,0.00010299,2]
[422902495,1779597033000,-500.0,0.00010699,2]
[422902493,1779597033000,-500.48354204,0.00010699,2]
[422902496,1779597033000,-320.33146998,0.00010699,2]
[422902488,1779597033000,-746.12,0.00010685,2]
[422902492,1779597033000,-500.0,0.00010699,2]
[422902498,1779597033000,-502.97764069,0.00010699,2]
[422902497,1779597033000,-500.0,0.00010699,2]
[422902494,1779597033000,-500.0,0.00010699,2]
[422902489,1779597033000,-500.0,0.00010699,2]
[422902491,1779597033000,-500.0,0.00010699,2]
[422902535,1779597034000,-500.0,0.00010699,2]
[422902541,1779597034000,-309.61793893,0.00010699,2]
[422902520,1779597034000,-500.0,0.00010699,2]
[422902519,1779597034000,-500.0,0.00010699,2]
[422902516,1779597034000,-500.0,0.00010699,2]
[422902532,1779597034000,-500.0,0.00010699,2]
[422902537,1779597034000,-500.0,0.00010699,2]
[422902539,1779597034000,-500.0,0.00010699,2]
[422902547,1779597034000,-500.0,0.00010699,2]
[422902545,1779597034000,-500.0,0.00010699,2]
[422902549,1779597034000,-500.0,0.00010699,2]
[422902551,1779597034000,-500.0,0.00010699,2]
[422902553,1779597034000,-500.0,0.00010699,2]
[422902554,1779597034000,-500.0,0.00010699,2]
[422902557,1779597034000,-500.0,0.00010699,2]
[422902561,1779597034000,-500.0,0.00010699,2]
[422902521,1779597034000,-500.0,0.00010699,2]
[422902543,1779597034000,-500.0,0.00010699,2]
[422902517,1779597034000,-500.0,0.00010699,2]
[422902510,1779597034000,-500.0,0.00010699,2]
[422902522,1779597034000,-500.0,0.00010699,2]
[422902501,1779597034000,-500.0,0.00010699,2]
[422902505,1779597034000,-500.0,0.00010699,2]
[422902503,1779597034000,-500.0,0.00010699,2]
[422902502,1779597034000,-500.0,0.00010699,2]
[422902506,1779597034000,-500.0,0.00010699,2]
[422902500,1779597034000,-500.0,0.00010699,2]
[422902507,1779597034000,-500.0,0.00010699,2]
[422902512,1779597034000,-500.0,0.00010699,2]
[422902518,1779597034000,-500.0,0.00010699,2]
[422902508,1779597034000,-371.07226156,0.00010699,2]
[422902556,1779597034000,-500.0,0.00010699,2]
[422902511,1779597034000,-500.0,0.00010699,2]
[422902514,1779597034000,-500.0,0.00010699,2]
[422902524,1779597034000,-500.0,0.00010699,2]
[422902513,1779597034000,-500.0,0.00010699,2]
[422902515,1779597034000,-500.0,0.00010699,2]
[422902526,1779597034000,-500.0,0.00010699,2]
[422902528,1779597034000,-500.0,0.00010699,2]
[422902509,1779597034000,-500.0,0.00010699,2]
[422902564,1779597034000,-500.0,0.00010699,2]
[422902530,1779597034000,-500.0,0.00010699,2]
[422902562,1779597034000,-500.0,0.00010699,2]
[422902587,1779597034000,-879.35905604,0.00010699,2]
[422902590,1779597034000,-841.38312592,0.00010699,2]
[422902584,1779597034000,-879.35905604,0.00010699,2]
[422902580,1779597034000,-879.35905604,0.00010699,2]
[422902589,1779597034000,-879.35905604,0.00010699,2]
[422902583,1779597034000,-879.35905604,0.00010699,2]
[422902586,1779597034000,-732.13157949,0.00010699,2]
[422902588,1779597034000,-879.35905604,0.00010699,2]
[422902585,1779597034000,-147.22747655,0.00010699,2]
[422902592,1779597034000,-879.35905604,0.00010699,2]
[422902596,1779597034000,-879.35905604,0.00010699,2]
[422902600,1779597034000,-862.18123503,0.00010699,2]
[422902595,1779597034000,-58.3916056,0.00010699,2]
[422902594,1779597034000,-820.96745044,0.00010699,2]
[422902598,1779597034000,-879.35905604,0.00010699,2]
[422902599,1779597034000,-879.35905604,0.00010699,2]
[422902597,1779597034000,-879.35905604,0.00010699,2]
[422902555,1779597034000,-500.0,0.00010699,2]
[422902593,1779597034000,-879.35905604,0.00010699,2]
[422902582,1779597034000,-879.35905604,0.00010699,2]
[422902591,1779597034000,-37.97593012,0.00010699,2]
[422902579,1779597034000,-879.35905604,0.00010699,2]
[422902563,1779597034000,-500.0,0.00010699,2]
[422902581,1779597034000,-879.35905604,0.00010699,2]
[422902560,1779597034000,-500.0,0.00010699,2]
[422902559,1779597034000,-500.0,0.00010699,2]
[422902558,1779597034000,-500.0,0.00010699,2]
[422902567,1779597034000,-879.35905604,0.00010699,2]
[422902577,1779597034000,-879.35905604,0.00010699,2]
[422902569,1779597034000,-879.35905604,0.00010699,2]
[422902568,1779597034000,-879.35905604,0.00010699,2]
[422902565,1779597034000,-500.0,0.00010699,2]
[422902570,1779597034000,-879.35905604,0.00010699,2]
[422902578,1779597034000,-879.35905604,0.00010699,2]
[422902575,1779597034000,-879.35905604,0.00010699,2]
[422902576,1779597034000,-879.35905604,0.00010699,2]
[422902572,1779597034000,-879.35905604,0.00010699,2]
[422902573,1779597034000,-879.35905604,0.00010699,2]
[422902566,1779597034000,-500.0,0.00010699,2]
[422902571,1779597034000,-879.35905604,0.00010699,2]
[422902574,1779597034000,-879.35905604,0.00010699,2]
[422902631,1779597038000,-150.0,0.00013488,2]
[422902647,1779597038000,-500.8160823,0.00013698,2]
[422902646,1779597038000,-500.0,0.00013698,2]
[422902636,1779597038000,-150.0,0.00013488,2]
[422902630,1779597038000,-251.72,0.00013458,2]
[422902633,1779597038000,-150.0,0.00013488,2]
[422902634,1779597038000,-258.17002616,0.00013488,2]
[422902629,1779597038000,-1640.84,0.0001294,2]
[422902649,1779597038000,-200.0,0.00013699,2]
[422902632,1779597038000,-151.81140396,0.00013488,2]
[422902635,1779597038000,-151.64348816,0.00013488,2]
[422902640,1779597038000,-150.0,0.00013488,2]
[422902637,1779597038000,-150.0,0.00013488,2]
[422902644,1779597038000,-823.0,0.00013696,2]
[422902642,1779597038000,-150.0,0.00013488,2]
[422902639,1779597038000,-150.0,0.00013488,2]
[422902641,1779597038000,-150.0,0.00013488,2]
[422902645,1779597038000,-500.0,0.00013698,2]
[422902643,1779597038000,-736.0,0.00013667,2]
[422902651,1779597038000,-610.8645825,0.00013699,2]
[422902653,1779597038000,-610.8645825,0.00013699,2]
[422902655,1779597038000,-610.8645825,0.00013699,2]
[422902622,1779597038000,-5758.32553732,0.00011604,2]
[422902638,1779597038000,-150.0,0.00013488,2]
[422902626,1779597038000,-433.0,0.00012441,2]
[422902607,1779597038000,-677.9349458,0.00010699,2]
[422902628,1779597038000,-2351.0,0.00012462,2]
[422902602,1779597038000,-879.35905604,0.00010699,2]
[422902601,1779597038000,-17.17782101,0.00010699,2]
[422902603,1779597038000,-879.35905604,0.00010699,2]
[422902606,1779597038000,-879.35905604,0.00010699,2]
[422902604,1779597038000,-879.35905604,0.00010699,2]
[422902605,1779597038000,-879.35905604,0.00010699,2]
[422902616,1779597038000,-879.35905606,0.00010699,2]
[422902614,1779597038000,-879.35905606,0.00010699,2]
[422902615,1779597038000,-879.35905606,0.00010699,2]
[422902618,1779597038000,-503.97765663,0.00010973,2]
[422902657,1779597038000,-610.8645825,0.00013699,2]
[422902627,1779597038000,-587.0,0.00012454,2]
[422902619,1779597038000,-255.0,0.00011319,2]
[422902620,1779597038000,-420.0,0.00011325,2]
[422902608,1779597038000,-201.42411024,0.00010699,2]
[422902610,1779597038000,-879.35905606,0.00010699,2]
[422902611,1779597038000,-879.35905606,0.00010699,2]
[422902613,1779597038000,-879.35905606,0.00010699,2]
[422902609,1779597038000,-879.35905604,0.00010699,2]
[422902612,1779597038000,-879.35905606,0.00010699,2]
[422902621,1779597038000,-1680.0,0.00011329,2]
[422902624,1779597038000,-1016.14,0.00012166,2]
[422902623,1779597038000,-272.47419041,0.00011704,2]
[422902625,1779597038000,-158.68383791,0.00012441,2]